fUSD/lending_fUSD_20251223
["ID","MTS","AMOUNT","RATE_DAILY","PERIOD"]
[399534496,1766455843147,-500.0,0.000169,2]
[399534497,1766455843156,-500.0,0.000169,2]
[399534498,1766455843165,-500.0,0.000169,2]
[399534499,1766455843174,-500.0,0.000169,2]
[399534500,1766455843183,-500.0,0.000169,2]
[399534501,1766455843192,-500.0,0.000169,2]
[399534502,1766455843201,-500.0,0.000169,2]
[399534503,1766455843210,-500.0,0.000169,2]
[399534504,1766455843220,-500.0,0.000169,2]
[399534505,1766455843230,-500.0,0.000169,2]
[399534506,1766455843239,-500.0,0.000169,2]
[399534507,1766455843247,-500.0,0.000169,2]
[399534508,1766455843256,-500.0,0.000169,2]
[399534509,1766455843266,-500.0,0.000169,2]
[399534510,1766455843275,-420.10008661,0.000169,2]
[399534511,1766455843285,-2000.0,0.00016922,2]
[399534512,1766455843294,-2000.0,0.00016922,2]
[399534513,1766455843303,-2000.0,0.00016922,2]
[399534514,1766455843313,-1973.065,0.00016922,2]
[399534515,1766455843324,-215.0,0.00016934,2]
[399534516,1766455843333,-151.94715656,0.00016941,2]
[399534517,1766455843342,-1000.0,0.00016944,2]
[399534518,1766455843351,-1000.0,0.00016944,2]
[399534519,1766455843360,-1000.0,0.00016944,2]
[399534520,1766455843369,-1000.0,0.00016944,2]
[399534521,1766455843378,-265.838,0.00016944,2]
[399534522,1766455843387,-1000.0,0.00016944,2]
[399534523,1766455843397,-1000.0,0.00016944,2]
[399534524,1766455843406,-1000.0,0.00016944,2]
[399534525,1766455843415,-1000.0,0.00016944,2]
[399534526,1766455843425,-1000.0,0.00016944,2]
[399534527,1766455843434,-917.0,0.00016959,2]
[399534528,1766455843444,-160.0,0.00016959,2]
[399534529,1766455843453,-9253.396545,0.00016961,2]
[399534530,1766455843462,-275.20158,0.00016961,2]
[399534531,1766455843471,-215.0,0.00016967,2]
[399534532,1766455843480,-500.0,0.00016973,2]
[399534533,1766455843489,-163.78632391,0.00016973,2]
[399534534,1766455843498,-500.0,0.00016973,2]
[399534535,1766455843507,-500.0,0.00016973,2]
[399534536,1766455843516,-500.0,0.00016973,2]
[399534537,1766455843526,-500.0,0.00016973,2]
[399534538,1766455843535,-500.1214449,0.00016973,2]
[399534539,1766455843544,-500.0,0.00016973,2]
[399534540,1766455843554,-502.81331084,0.00016973,2]
[399534541,1766455843563,-160.20052694,0.00016973,2]
[399534542,1766455843576,-500.0,0.00016973,2]
[399534543,1766455843585,-500.0,0.00016973,2]
[399534544,1766455843594,-500.12339319,0.00016973,2]
[399534545,1766455843603,-500.0,0.00016973,2]
[399534546,1766455843613,-223.00477947,0.00016973,2]
[399534547,1766455843622,-172.670649,0.00016973,2]
[399534548,1766455843631,-165.59889929,0.00016973,2]
[399534549,1766455843644,-501.94430813,0.00016973,2]
[399534550,1766455843654,-381.05079451,0.00016973,2]
[399534551,1766455843663,-500.0,0.00016973,2]
[399534552,1766455843672,-201.7413727,0.00016973,2]
[399534553,1766455843682,-500.0,0.00016973,2]
[399534554,1766455843691,-500.24988524,0.00016973,2]
[399534555,1766455843700,-160.29255705,0.00016973,2]
[399534556,1766455843709,-500.8236575,0.00016973,2]
[399534557,1766455843719,-500.11396209,0.00016973,2]
[399534558,1766455843727,-500.0,0.00016973,2]
[399534559,1766455843736,-616.91721047,0.00016973,2]
[399534560,1766455843746,-500.52659866,0.00016973,2]
[399534561,1766455843755,-500.0,0.00016973,2]
[399534562,1766455843764,-500.57373942,0.00016973,2]
[399534563,1766455843773,-216.36061645,0.00016973,2]
[399534564,1766455843783,-500.27460422,0.00016973,2]
[399534565,1766455843792,-501.89912331,0.00016973,2]
[399534566,1766455843801,-165.37952363,0.00016973,2]
[399534567,1766455843811,-500.0,0.00016973,2]
[399534568,1766455843821,-500.08130902,0.00016973,2]
[399534569,1766455843830,-165.51567643,0.00016973,2]
[399534570,1766455843840,-500.82264109,0.00016973,2]
[399534571,1766455843849,-500.23725067,0.00016973,2]
[399534572,1766455843858,-150.0,0.00016973,2]
[399534573,1766455843868,-150.0,0.00016973,2]
[399534574,1766455843877,-500.0,0.00016982,2]
[399534575,1766455843886,-631.35,0.00016986,2]
[399534576,1766455843895,-158.53746768,0.00016986,2]
[399534577,1766455843904,-194.61616776,0.00016986,2]
[399534578,1766455843914,-197.6160128,0.00016986,2]
[399534579,1766455843923,-157.6823216,0.00016986,2]
[399534580,1766455843932,-1178.227467,0.0001699,2]
[399534581,1766455843941,-1178.227467,0.0001699,2]
[399534582,1766455843950,-300.0,0.00016997,2]
[399534583,1766455843959,-300.0,0.00016997,2]
[399534584,1766455843967,-666.0,0.00016997,2]
[399534585,1766455843977,-1500.0,0.00016998,2]
[399534586,1766455843987,-1500.0,0.00016998,2]
[399534587,1766455843996,-1500.0,0.00016998,2]
[399534588,1766455844006,-1500.0,0.00016998,2]
[399534589,1766455844016,-1500.0,0.00016998,2]
[399534590,1766455844025,-1500.0,0.00016998,2]
[399534591,1766455844034,-1500.0,0.00016998,2]
[399534592,1766455844044,-1500.0,0.00016998,2]
[399534593,1766455844053,-1500.0,0.00016998,2]
[399534594,1766455844062,-1500.0,0.00016998,5]
[399534595,1766455844071,-1500.0,0.00016998,5]
[399534596,1766455844081,-1500.0,0.00016998,2]
[399534597,1766455844090,-1500.0,0.00016998,2]
[399534598,1766455844099,-1500.0,0.00016998,2]
[399534599,1766455844108,-1500.0,0.00016998,2]
[399534600,1766455844117,-1500.0,0.00016998,2]
[399534601,1766455844126,-1500.0,0.00016998,2]
[399534602,1766455844135,-1500.0,0.00016998,2]
[399534603,1766455844144,-1500.0,0.00016998,2]
[399534604,1766455844153,-1500.0,0.00016998,2]
[399534605,1766455844162,-1500.0,0.00016998,5]
[399534606,1766455844171,-1500.0,0.00016998,5]
[399534607,1766455844180,-1500.0,0.00016998,2]
[399534608,1766455844190,-1500.0,0.00016998,2]
[399534609,1766455844199,-1500.0,0.00016998,2]
[399534610,1766455844209,-1500.0,0.00016998,2]
[399534611,1766455844219,-1500.0,0.00016998,2]
[399534612,1766455844228,-1500.0,0.00016998,2]
[399534613,1766455844238,-1500.0,0.00016998,2]
[399534614,1766455844247,-1500.0,0.00016998,2]
[399534615,1766455844257,-756.67158664,0.00016998,2]
[399534616,1766455844266,-151.0,0.00016998,2]
[399534617,1766455844275,-151.0,0.00016998,2]
[399534618,1766455844284,-151.0,0.00016998,2]
[399534619,1766455844293,-151.0,0.00016998,2]
[399534620,1766455844302,-151.0,0.00016998,2]
[399534621,1766455844311,-151.0,0.00016998,2]
[399534622,1766455844320,-151.0,0.00016998,2]
[399534623,1766455844330,-314.126592,0.00016998,2]
[399534624,1766455844339,-314.126592,0.00016998,2]
[399534625,1766455844349,-314.126592,0.00016998,2]
[399534626,1766455844358,-314.126592,0.00016998,2]
[399534627,1766455844367,-151.0,0.00016998,2]
[399534628,1766455844375,-210.288625,0.00016998,2]
[399534629,1766455844385,-198.831341,0.00016998,2]
[399534630,1766455844395,-198.831341,0.00016998,2]
[399534631,1766455844404,-296.573018,0.00016998,2]
[399534632,1766455844413,-198.831341,0.00016998,2]
[399534633,1766455844422,-296.573018,0.00016998,2]
[399534634,1766455844432,-198.831341,0.00016998,2]
[399534635,1766455844441,-296.573018,0.00016998,2]
[399534636,1766455844450,-296.573018,0.00016998,2]
[399534637,1766455844459,-300.0,0.00016999,2]
[399534638,1766455844468,-500.0,0.00016999,2]
[399534639,1766455844477,-500.0,0.00016999,2]
[399534640,1766455844486,-500.0,0.00016999,2]
[399534641,1766455844495,-500.0,0.00016999,2]
[399534642,1766455844504,-500.0,0.00016999,2]
[399534643,1766455844514,-500.0,0.00016999,2]
[399534644,1766455844523,-500.0,0.00016999,2]
[399534645,1766455844533,-500.0,0.00016999,2]
[399534646,1766455844542,-500.0,0.00016999,2]
[399534647,1766455844551,-500.0,0.00016999,2]
[399534648,1766455844560,-610.06622025,0.00016999,2]
[399534649,1766455844574,-300.0,0.00016999,2]
[399534650,1766455844583,-670.82271321,0.00016999,2]
[399534651,1766455844592,-150.0,0.00016999,2]
[399534652,1766455844601,-1341768.01841454,0.00017,2]
[399534653,1766455844611,-2946475.96532399,0.00017,2]
[399534654,1766455844620,-1804614.31693891,0.00017,2]
[399534657,1766455845357,-442712.25938996,0.00017,2]
[399534658,1766455845517,-1199.316,0.00014054,2]
[399534659,1766455845526,-493.64593425,0.00017,2]
[399534660,1766455845780,-231.04051701,0.00016722,2]
[399534661,1766455845790,-566.31537334,0.00017,2]
[399534662,1766455845816,-1710.80756389,0.00017,2]
[399534734,1766456635113,524.79,0.00014,3]
[399534735,1766456654682,-299.52802974,0.00014064,2]
[399534740,1766456920329,150.50429611,0.0002,120]
[399534756,1766457031609,-200.0,0.00013935,2]
[399534758,1766457031619,-2925.16197026,0.00014064,2]
[399534759,1766457031628,-2207.81670898,0.00014074,2]
[399534760,1766457031640,-273.00000014,0.00014074,2]
[399534761,1766457031651,-19.18329088,0.00014074,2]
[399534762,1766457031660,-300.0,0.00014083,2]
[399534763,1766457031670,-600.0,0.00014083,2]
[399534764,1766457031680,-89.14670912,0.00014102,2]
[399534765,1766457031691,-60.85329088,0.00014102,2]
[399534766,1766457031700,-300.0,0.00014112,2]
[399534767,1766457031709,-659.68719106,0.00014113,2]
[399534768,1766457031721,-1012.46642951,0.00014113,2]
[399534769,1766457031732,-827.84637943,0.00014113,2]
[399534770,1766457031742,-307.07452106,0.0001415,2]
[399534771,1766457031751,-321.44258472,0.0001415,2]
[399534772,1766457031762,-1852.42,0.00014167,2]
[399534773,1766457031772,-258.13,0.000142,2]
[399534774,1766457031781,-150.0,0.00014239,2]
[399534775,1766457031790,-1052.03739323,0.0001424,2]
[399534776,1766457031805,-47451.81093025,0.0001424,2]
[399534777,1766457031825,-589.13665431,0.0001424,2]
[399534807,1766457037668,-187.60224602,0.00014239,2]
[399534808,1766457037678,-500.0,0.00014239,2]
[399534809,1766457037688,-161.07801377,0.00014239,2]
[399534810,1766457037697,-4539.55048556,0.0001424,2]
[399534811,1766457037726,-4312.66566898,0.0001424,2]
[399534812,1766457037779,-63414.28717478,0.0001424,2]
[399534813,1766457037790,-7712.92932764,0.0001424,2]
[399534814,1766457037801,-348.01441186,0.0001424,2]
[399534815,1766457037812,-842.19516951,0.0001424,2]
[399534816,1766457037836,-380.44148021,0.0001424,2]
[399534817,1766457037847,-183754.03868772,0.0001424,2]
[399534818,1766457037892,-451.14186505,0.0001424,2]
[399534819,1766457037904,-3531.99658436,0.0001424,2]
[399534878,1766457039883,-271.37002482,0.00014239,2]
[399534879,1766457039895,-200.90288163,0.00014239,2]
[399534880,1766457039905,-500.0,0.00014239,2]
[399534881,1766457039917,-500.0,0.00014239,2]
[399534882,1766457039926,-254.93376991,0.00014239,2]
[399534883,1766457039998,-246.15857613,0.00014239,2]
[399534884,1766457040008,-275.54167157,0.00014239,2]
[399534885,1766457040149,-227.67326305,0.00014239,2]
[399534886,1766457040158,-500.0,0.00014239,2]
[399534887,1766457040168,-500.0,0.00014239,2]
[399534888,1766457040177,-500.0,0.00014239,2]
[399534889,1766457040187,-232.55662466,0.00014239,2]
[399534890,1766457040196,-364.35739065,0.00014239,2]
[399534891,1766457040205,-500.0,0.00014239,2]
[399534892,1766457040215,-358.39122575,0.00014239,2]
[399534893,1766457040224,-187.34558094,0.00014239,2]
[399534894,1766457040233,-500.0,0.00014239,2]
[399534895,1766457040243,-500.0,0.00014239,2]
[399534897,1766457040252,-500.0,0.00014239,2]
[399534899,1766457040261,-500.0,0.00014239,2]
[399534901,1766457040271,-446.19724583,0.00014239,2]
[399534903,1766457040283,-53.80275417,0.00014239,2]
[399534904,1766457040292,-500.0,0.00014239,2]
[399534905,1766457040302,-500.0,0.00014239,2]
[399534906,1766457040311,-500.0,0.00014239,2]
[399534907,1766457040321,-500.0,0.00014239,2]
[399534908,1766457040330,-500.0,0.00014239,2]
[399534909,1766457040339,-500.0,0.00014239,2]
[399534910,1766457040348,-500.0,0.00014239,2]
[399534911,1766457040357,-500.0,0.00014239,2]
[399534912,1766457040366,-500.0,0.00014239,2]
[399534913,1766457040375,-500.0,0.00014239,2]
[399534914,1766457040385,-500.0,0.00014239,2]
[399534915,1766457040394,-500.0,0.00014239,2]
[399534916,1766457040403,-500.0,0.00014239,2]
[399534917,1766457040413,-681619.75416654,0.0001424,2]
[399534918,1766457040423,-4042.4208,0.0001434,2]
[399534919,1766457040432,-2500.0,0.0001434,2]
[399534920,1766457040442,-150.99,0.00014431,2]
[399534921,1766457040451,-200.0,0.00014431,2]
[399534922,1766457040460,-151.0,0.00014431,2]
[399534923,1766457040469,-500.0,0.00014431,2]
[399534924,1766457040477,-151.0,0.00014431,2]
[399534925,1766457040486,-500.0,0.00014431,2]
[399534926,1766457040495,-151.0,0.00014431,2]
[399534927,1766457040504,-500.0,0.00014431,2]
[399534928,1766457040514,-151.0,0.00014431,2]
[399534929,1766457040523,-500.0,0.00014431,2]
[399534930,1766457040532,-151.0,0.00014431,2]
[399534931,1766457040541,-500.0,0.00014431,2]
[399534932,1766457040550,-151.0,0.00014431,2]
[399534933,1766457040559,-500.0,0.00014431,2]
[399534934,1766457040568,-151.0,0.00014431,2]
[399534935,1766457040577,-500.0,0.00014431,2]
[399534936,1766457040586,-500.0,0.00014431,2]
[399534937,1766457040595,-151.0,0.00014431,2]
[399534938,1766457040604,-500.0,0.00014431,2]
[399534939,1766457040613,-500.0,0.00014431,2]
[399534940,1766457040622,-151.0,0.00014431,2]
[399534941,1766457040631,-500.0,0.00014431,2]
[399534942,1766457040640,-500.0,0.00014431,2]
[399534943,1766457040649,-151.0,0.00014431,2]
[399534944,1766457040658,-500.0,0.00014431,2]
[399534945,1766457040668,-500.0,0.00014431,2]
[399534946,1766457040677,-151.0,0.00014431,2]
[399534947,1766457040686,-151.0,0.00014431,2]
[399534948,1766457040698,-500.0,0.00014431,2]
[399534949,1766457040707,-500.0,0.00014431,2]
[399534950,1766457040717,-151.0,0.00014431,2]
[399534951,1766457040726,-500.0,0.00014431,2]
[399534952,1766457040735,-151.0,0.00014431,2]
[399534953,1766457040744,-500.0,0.00014431,2]
[399534954,1766457040754,-151.0,0.00014431,2]
[399534955,1766457040763,-500.0,0.00014431,2]
[399534956,1766457040772,-153.40929407,0.00014431,2]
[399534957,1766457040781,-500.0,0.00014431,2]
[399534958,1766457040790,-500.0,0.00014431,2]
[399534959,1766457040799,-500.0,0.00014431,2]
[399534960,1766457040808,-746.76283176,0.00014435,2]
[399534961,1766457040817,-5159.29,0.00014435,2]
[399534962,1766457040826,-346.94,0.00014435,2]
[399534963,1766457040835,-9999.99,0.00014435,2]
[399534964,1766457040844,-1808.01,0.00014435,2]
[399534965,1766457040854,-299.99,0.00014435,2]
[399534966,1766457040863,-12669.39,0.00014435,2]
[399534967,1766457040872,-3240.19587879,0.00014435,2]
[399534968,1766457040882,-4884.14826894,0.00014435,2]
[399534969,1766457040895,-446.747,0.00014438,2]
[399534970,1766457040905,-6718.081,0.00014438,2]
[399534971,1766457040918,-606.57691663,0.00014439,2]
[399534972,1766457040928,-500.0,0.00014439,2]
[399534973,1766457040937,-500.0,0.00014439,2]
[399534974,1766457040947,-500.0,0.00014439,2]
[399534975,1766457040958,-500.0,0.00014439,2]
[399534976,1766457040967,-500.0,0.00014439,2]
[399534977,1766457040978,-500.0,0.00014439,2]
[399534978,1766457040988,-500.0,0.00014439,2]
[399534979,1766457040998,-500.0,0.00014439,2]
[399534980,1766457041007,-500.0,0.00014439,2]
[399534981,1766457041017,-500.0,0.00014439,2]
[399534982,1766457041027,-500.0,0.00014439,2]
[399534983,1766457041036,-500.0,0.00014439,2]
[399534984,1766457041046,-150.0,0.0001444,2]
[399534985,1766457041055,-1000.0,0.00014535,2]
[399534986,1766457041065,-210.592425,0.00014567,2]
[399534987,1766457041074,-813.0,0.00014641,2]
[399534988,1766457041087,-962.0,0.0001467,2]
[399534989,1766457041097,-420.0,0.000147,2]
[399534990,1766457041107,-3240.19587875,0.00014709,2]
[399534991,1766457041117,-4884.14826892,0.00014709,2]
[399534992,1766457041126,-1272.446,0.00014758,2]
[399534993,1766457041136,-518.0,0.00014758,2]
[399534994,1766457041145,-1198.0,0.00014758,2]
[399534995,1766457041155,-912.0,0.00014758,2]
[399534996,1766457041165,-4806.0,0.00014758,2]
[399534997,1766457041174,-2430.0,0.00014758,2]
[399534998,1766457041184,-3457.0,0.00014758,2]
[399534999,1766457041193,-3240.19587875,0.00014983,2]
[399535000,1766457041203,-4884.14826892,0.00014983,2]
[399535001,1766457041212,-166.66,0.00015193,2]
[399535002,1766457041222,-151.0,0.00015196,2]
[399535003,1766457041231,-151.0,0.00015199,2]
[399535004,1766457041240,-151.0,0.00015199,2]
[399535005,1766457041250,-150.0,0.00015233,2]
[399535006,1766457041259,-3240.19587875,0.00015257,2]
[399535007,1766457041268,-4884.14826892,0.00015257,2]
[399535008,1766457041278,-2500.0,0.00015329,2]
[399535009,1766457041290,-300.0,0.00015329,2]
[399535010,1766457041300,-244.0,0.00015364,2]
[399535011,1766457041309,-373.74536025,0.00015376,2]
[399535012,1766457041319,-308.48826575,0.00015394,2]
[399535013,1766457041328,-165.17,0.00015434,2]
[399535014,1766457041337,-300.0,0.00015471,2]
[399535015,1766457041347,-410.63322852,0.00015471,2]
[399535016,1766457041360,-300.0,0.00015471,2]
[399535017,1766457041370,-600.0,0.00015471,2]
[399535018,1766457041379,-2500.0,0.00015471,2]
[399535019,1766457041389,-300.0,0.00015471,2]
[399535020,1766457041398,-500.0,0.00015492,2]
[399535021,1766457041408,-500.0,0.00015492,2]
[399535022,1766457041417,-500.0,0.00015501,2]
[399535023,1766457041427,-500.0,0.00015501,2]
[399535024,1766457041436,-391.94886084,0.00015501,2]
[399535025,1766457041446,-500.0,0.00015501,2]
[399535026,1766457041455,-500.0,0.00015501,2]
[399535027,1766457041464,-500.0,0.00015501,2]
[399535028,1766457041473,-520.33216944,0.00015501,2]
[399535029,1766457041486,-166.66,0.00015512,2]
[399535030,1766457041496,-3240.19587875,0.00015531,2]
[399535031,1766457041508,-4884.14826892,0.00015531,2]
[399535032,1766457041518,-500.0,0.00015534,2]
[399535033,1766457041530,-166.66,0.00015633,2]
[399535034,1766457041540,-3240.19587875,0.00015804,2]
[399535035,1766457041550,-4884.14826892,0.00015804,2]
[399535036,1766457041559,-166.66,0.00015832,2]
[399535037,1766457041568,-3240.19587875,0.00016078,2]
[399535038,1766457041578,-4884.14826892,0.00016078,2]
[399535039,1766457041587,-1178.227467,0.00016139,2]
[399535040,1766457041597,-578.20924308,0.00016149,2]
[399535041,1766457041606,-250.0,0.00016149,2]
[399535042,1766457041615,-250.0,0.00016149,2]
[399535043,1766457041625,-721.12765535,0.00016149,2]
[399535044,1766457041635,-250.0,0.00016149,2]
[399535045,1766457041645,-250.0,0.00016149,2]
[399535046,1766457041655,-250.0,0.00016149,2]
[399535047,1766457041664,-250.0,0.00016149,2]
[399535048,1766457041673,-250.0,0.00016149,2]
[399535049,1766457041685,-250.0,0.00016149,2]
[399535050,1766457041694,-250.0,0.00016149,2]
[399535051,1766457041704,-250.0,0.00016149,2]
[399535052,1766457041713,-250.0,0.00016149,2]
[399535053,1766457041723,-152.20980143,0.00016149,2]
[399535054,1766457041732,-217.57602405,0.00016149,2]
[399535055,1766457041741,-500.0,0.00016149,2]
[399535056,1766457041751,-500.0,0.00016149,2]
[399535057,1766457041760,-500.0,0.00016149,2]
[399535058,1766457041769,-313.36106104,0.00016149,2]
[399535059,1766457041779,-500.0,0.00016149,2]
[399535060,1766457041789,-500.0,0.00016149,2]
[399535061,1766457041798,-500.0,0.00016149,2]
[399535062,1766457041807,-500.0,0.00016149,2]
[399535063,1766457041816,-500.0,0.00016149,2]
[399535064,1766457041826,-500.0,0.00016149,2]
[399535065,1766457041835,-500.0,0.00016149,2]
[399535066,1766457041844,-500.0,0.00016149,2]
[399535067,1766457041853,-500.0,0.00016149,2]
[399535068,1766457041863,-574.12855637,0.00016149,2]
[399535069,1766457041872,-500.0,0.00016149,2]
[399535070,1766457041882,-500.0,0.00016149,2]
[399535071,1766457041891,-500.0,0.00016149,2]
[399535072,1766457041901,-500.0,0.00016149,2]
[399535073,1766457041915,-500.0,0.00016149,2]
[399535074,1766457041924,-500.0,0.00016149,2]
[399535075,1766457041934,-500.0,0.00016149,2]
[399535076,1766457041944,-500.0,0.00016149,2]
[399535077,1766457041956,-500.0,0.00016149,2]
[399535078,1766457041966,-209.40437684,0.00016149,2]
[399535079,1766457041976,-518.9281871,0.00016149,2]
[399535080,1766457041987,-250.0,0.00016149,2]
[399535081,1766457042007,-500.0,0.00016149,2]
[399535082,1766457042017,-250.0,0.00016149,2]
[399535083,1766457042027,-500.0,0.00016149,2]
[399535084,1766457042036,-250.0,0.00016149,2]
[399535085,1766457042046,-500.0,0.00016149,2]
[399535086,1766457042055,-250.0,0.00016149,2]
[399535087,1766457042065,-500.0,0.00016149,2]
[399535088,1766457042075,-250.0,0.00016149,2]
[399535089,1766457042084,-500.0,0.00016149,2]
[399535090,1766457042094,-250.0,0.00016149,2]
[399535091,1766457042103,-500.0,0.00016149,2]
[399535092,1766457042113,-250.0,0.00016149,2]
[399535093,1766457042123,-500.0,0.00016149,2]
[399535094,1766457042133,-250.0,0.00016149,2]
[399535095,1766457042142,-250.0,0.00016149,2]
[399535096,1766457042151,-500.0,0.00016149,2]
[399535097,1766457042161,-250.0,0.00016149,2]
[399535098,1766457042170,-250.0,0.00016149,2]
[399535099,1766457042180,-500.0,0.00016149,2]
[399535100,1766457042190,-250.0,0.00016149,2]
[399535101,1766457042199,-250.0,0.00016149,2]
[399535102,1766457042209,-500.0,0.00016149,2]
[399535103,1766457042218,-250.0,0.00016149,2]
[399535104,1766457042227,-250.0,0.00016149,2]
[399535105,1766457042236,-500.0,0.00016149,2]
[399535106,1766457042245,-250.0,0.00016149,2]
[399535107,1766457042255,-250.0,0.00016149,2]
[399535108,1766457042264,-322.6107,0.00016149,2]
[399535109,1766457042274,-250.0,0.00016149,2]
[399535110,1766457042284,-250.0,0.00016149,2]
[399535111,1766457042294,-250.0,0.00016149,2]
[399535112,1766457042304,-250.0,0.00016149,2]
[399535113,1766457042314,-250.0,0.00016149,2]
[399535114,1766457042324,-250.0,0.00016149,2]
[399535115,1766457042333,-620.0,0.00016149,2]
[399535116,1766457042346,-250.0,0.00016149,2]
[399535117,1766457042356,-250.0,0.00016149,2]
[399535118,1766457042365,-261.84535505,0.00016149,2]
[399535119,1766457042375,-250.0,0.00016149,2]
[399535120,1766457042384,-166.66,0.00016149,2]
[399535121,1766457042394,-166.66,0.00016152,2]
[399535122,1766457042403,-165.17,0.00016291,2]
[399535124,1766457042414,-3240.19587875,0.00016352,2]
[399535125,1766457042424,-4884.14826892,0.00016352,2]
[399535126,1766457042435,-2540.9,0.00016438,2]
[399535127,1766457042446,-500.0,0.00016438,2]
[399535128,1766457042456,-500.0,0.00016438,2]
[399535129,1766457042466,-500.0,0.00016438,2]
[399535131,1766457042475,-500.0,0.00016438,2]
[399535132,1766457042486,-500.0,0.00016438,2]
[399535133,1766457042801,-500.0,0.00016438,2]
[399535134,1766457042879,-500.0,0.00016438,2]
[399535135,1766457042889,-500.0,0.00016438,2]
[399535136,1766457042898,-500.0,0.00016438,2]
[399535137,1766457042912,-500.0,0.00016438,2]
[399535138,1766457042922,-500.0,0.00016438,2]
[399535139,1766457042933,-500.0,0.00016438,2]
[399535140,1766457042943,-500.0,0.00016438,2]
[399535141,1766457042953,-333.15394266,0.00016438,2]
[399535142,1766457042963,-500.0,0.00016438,2]
[399535143,1766457042973,-500.0,0.00016438,2]
[399535144,1766457042982,-500.0,0.00016438,2]
[399535145,1766457042992,-600.0,0.00016438,2]
[399535146,1766457043001,-800.56570297,0.00016438,2]
[399535147,1766457043011,-9915.91,0.00016438,2]
[399535148,1766457043020,-166.66,0.00016472,2]
[399535149,1766457043029,-647.0,0.00016548,2]
[399535150,1766457043038,-358.761559,0.000166,2]
[399535151,1766457043047,-467.80181924,0.00016621,2]
[399535152,1766457043057,-3240.19587875,0.00016626,2]
[399535153,1766457043066,-4884.14826892,0.00016626,2]
[399535154,1766457043075,-3960.04801846,0.0001666,2]
[399535155,1766457043085,-166.66,0.00016665,2]
[399535156,1766457043094,-1075.03616048,0.00016666,2]
[399535157,1766457043104,-595.37131296,0.00016697,2]
[399535158,1766457043114,-217.15233878,0.00016697,2]
[399535159,1766457043123,-150.0,0.00016699,2]
[399535160,1766457043133,-1668.0,0.00016699,2]
[399535161,1766457043142,-159.32237282,0.00016699,2]
[399535162,1766457043152,-151.59854869,0.00016699,2]
[399535163,1766457043162,-150.36948602,0.00016699,2]
[399535164,1766457043171,-153.05624384,0.00016699,2]
[399535165,1766457043180,-151.25423513,0.00016699,2]
[399535166,1766457043188,-150.58846214,0.00016699,2]
[399535167,1766457043197,-150.36220189,0.00016699,2]
[399535168,1766457043205,-150.0,0.00016699,2]
[399535169,1766457043214,-150.30865054,0.00016699,2]
[399535170,1766457043223,-150.0,0.00016699,2]
[399535171,1766457043232,-256.48893157,0.00016726,2]
[399535172,1766457043242,-1668.0,0.00016726,2]
[399535174,1766457043250,-202.57778955,0.00016726,2]
[399535176,1766457043260,-200.85518696,0.00016726,2]
[399535178,1766457043269,-1668.0,0.00016754,2]
[399535179,1766457043278,-1668.0,0.00016781,2]
[399535180,1766457043287,-166.66,0.00016792,2]
[399535181,1766457043297,-2000.0,0.000168,2]
[399535182,1766457043306,-2000.0,0.000168,2]
[399535183,1766457043315,-2000.0,0.000168,2]
[399535184,1766457043324,-1973.065,0.000168,2]